fUSD/lending_fUSD_20250507
["ID","MTS","AMOUNT","RATE_DAILY","PERIOD"]
[360195097,1746614927625,-450.0,0.00019515,2]
[360195098,1746614927654,-450.0,0.00019515,2]
[360195099,1746614927681,-450.0,0.00019515,2]
[360195100,1746614927709,-193.34099805,0.00019515,2]
[360195101,1746614927737,-450.0,0.00019515,2]
[360195102,1746614927766,-450.0,0.00019515,2]
[360195103,1746614927797,-450.0,0.00019515,2]
[360195104,1746614927827,-2862.7,0.00019515,2]
[360195105,1746614927857,-450.0,0.00019515,2]
[360195106,1746614927885,-450.0,0.00019515,2]
[360195107,1746614927915,-522.94,0.00019515,2]
[360195108,1746614927945,-450.0,0.00019515,2]
[360195109,1746614927974,-450.0,0.00019515,2]
[360195110,1746614928003,-450.0,0.00019515,2]
[360195111,1746614928030,-450.0,0.00019515,2]
[360195112,1746614928057,-450.0,0.00019515,2]
[360195113,1746614928085,-487.75054878,0.00019515,2]
[360195114,1746614928114,-151.0,0.00019515,2]
[360195115,1746614928142,-151.0,0.00019515,2]
[360195116,1746614928172,-450.0,0.00019515,2]
[360195117,1746614928202,-221.50525678,0.00019515,2]
[360195118,1746614928231,-151.0,0.00019515,2]
[360195119,1746614928260,-450.0,0.00019515,2]
[360195120,1746614928289,-151.0,0.00019515,2]
[360195121,1746614928318,-450.0,0.00019515,2]
[360195122,1746614928346,-450.0,0.00019515,2]
[360195123,1746614928376,-450.0,0.00019515,2]
[360195124,1746614928404,-450.0,0.00019515,2]
[360195125,1746614928433,-2745.63,0.00019515,2]
[360195126,1746614928463,-450.0,0.00019515,2]
[360195127,1746614928493,-769.2,0.00019515,2]
[360195128,1746614928522,-450.0,0.00019515,2]
[360195129,1746614928551,-450.0,0.00019515,2]
[360195130,1746614928581,-416.75,0.00019515,2]
[360195131,1746614928610,-450.0,0.00019515,2]
[360195132,1746614928640,-450.0,0.00019515,2]
[360195133,1746614928668,-718.28,0.00019515,2]
[360195134,1746614928696,-450.0,0.00019515,2]
[360195135,1746614928724,-450.0,0.00019515,2]
[360195136,1746614928753,-450.0,0.00019515,2]
[360195137,1746614928781,-175.68685959,0.00019515,2]
[360195138,1746614928809,-450.0,0.00019515,2]
[360195139,1746614928837,-151.0,0.00019515,2]
[360195140,1746614928869,-151.0,0.00019515,2]
[360195141,1746614928898,-450.0,0.00019515,2]
[360195142,1746614928928,-450.0,0.00019515,2]
[360195143,1746614928958,-880.0,0.00019515,2]
[360195144,1746614928994,-500.0,0.00019515,2]
[360195145,1746614929022,-182.64229045,0.00019515,2]
[360195146,1746614929057,-500.0,0.00019515,2]
[360195147,1746614929090,-500.0,0.00019515,2]
[360195148,1746614929125,-500.0,0.00019515,2]
[360195149,1746614929158,-500.0,0.00019515,2]
[360195150,1746614929192,-625.41788528,0.00019515,2]
[360195151,1746614929227,-500.0,0.00019515,2]
[360195152,1746614929262,-500.0,0.00019515,2]
[360195153,1746614929295,-500.0,0.00019515,2]
[360195154,1746614929322,-450.0,0.00019515,2]
[360195155,1746614929356,-500.0,0.00019515,2]
[360195156,1746614929390,-500.0,0.00019515,2]
[360195157,1746614929423,-500.0,0.00019515,2]
[360195158,1746614929457,-500.0,0.00019515,2]
[360195159,1746614929492,-500.0,0.00019515,2]
[360195160,1746614929528,-500.0,0.00019515,2]
[360195161,1746614929556,-450.0,0.00019515,2]
[360195162,1746614929710,-151.0,0.00019515,2]
[360195163,1746614929741,-450.0,0.00019515,2]
[360195164,1746614929771,-592.2,0.00019515,2]
[360195165,1746614929800,-432.38084859,0.00019515,2]
[360195166,1746614929828,-592.2,0.00019515,2]
[360195167,1746614929859,-450.0,0.00019515,2]
[360195168,1746614929889,-450.0,0.00019515,2]
[360195169,1746614929918,-151.0,0.00019515,2]
[360195170,1746614929949,-589.24,0.00019515,2]
[360195171,1746614929980,-292.642806,0.00019515,2]
[360195172,1746614930008,-450.0,0.00019515,2]
[360195173,1746614930035,-450.0,0.00019515,2]
[360195174,1746614930062,-450.0,0.00019515,2]
[360195175,1746614930090,-151.0,0.00019515,2]
[360195176,1746614930118,-450.0,0.00019515,2]
[360195177,1746614930145,-450.0,0.00019515,2]
[360195178,1746614930172,-151.0,0.00019515,2]
[360195179,1746614930200,-239.425674,0.00019515,2]
[360195180,1746614930230,-450.0,0.00019515,2]
[360195181,1746614930258,-152.650933,0.00019515,2]
[360195182,1746614930287,-477.54786863,0.00019516,2]
[360195183,1746614930315,-450.0,0.00019516,2]
[360195184,1746614930343,-450.0,0.00019516,2]
[360195185,1746614930369,-339.65,0.00019516,2]
[360195186,1746614930401,-450.0,0.00019516,2]
[360195187,1746614930429,-450.0,0.00019516,2]
[360195188,1746614930457,-284.9,0.00019516,2]
[360195189,1746614930487,-450.0,0.00019516,2]
[360195190,1746614930514,-708.97,0.00019516,2]
[360195191,1746614930542,-450.0,0.00019516,2]
[360195192,1746614930570,-450.0,0.00019516,2]
[360195193,1746614930596,-450.0,0.00019516,2]
[360195194,1746614930624,-450.0,0.00019516,2]
[360195195,1746614930651,-171.7368711,0.00019516,2]
[360195196,1746614930679,-450.0,0.00019516,2]
[360195197,1746614930707,-450.0,0.00019516,2]
[360195198,1746614930736,-450.0,0.00019516,2]
[360195199,1746614930766,-450.0,0.00019516,2]
[360195200,1746614930794,-450.0,0.00019516,2]
[360195201,1746614930822,-450.0,0.00019516,2]
[360195202,1746614930850,-450.0,0.00019516,2]
[360195203,1746614930877,-450.0,0.00019516,2]
[360195204,1746614930905,-199.49,0.00019516,2]
[360195205,1746614930934,-450.0,0.00019516,2]
[360195206,1746614930962,-450.0,0.00019516,2]
[360195207,1746614930989,-474.14,0.00019516,2]
[360195208,1746614931017,-450.0,0.00019516,2]
[360195209,1746614931045,-450.0,0.00019516,2]
[360195210,1746614931075,-450.0,0.00019516,2]
[360195211,1746614931102,-372.27,0.00019516,2]
[360195212,1746614931131,-450.0,0.00019516,2]
[360195213,1746614931157,-450.0,0.00019516,2]
[360195214,1746614931185,-450.0,0.00019516,2]
[360195215,1746614931229,-450.0,0.00019516,2]
[360195216,1746614931258,-450.0,0.00019516,2]
[360195217,1746614931286,-474.70618997,0.00019516,2]
[360195218,1746614931315,-450.0,0.00019516,2]
[360195219,1746614931346,-450.0,0.00019516,2]
[360195220,1746614931375,-2862.7,0.00019516,2]
[360195221,1746614931403,-450.0,0.00019516,2]
[360195222,1746614931431,-450.0,0.00019516,2]
[360195223,1746614931461,-450.0,0.00019516,2]
[360195224,1746614931492,-450.0,0.00019516,2]
[360195225,1746614931522,-151.0,0.00019516,2]
[360195226,1746614931550,-450.0,0.00019516,2]
[360195227,1746614931579,-151.0,0.00019516,2]
[360195228,1746614931607,-151.0,0.00019516,2]
[360195229,1746614931635,-151.0,0.00019516,2]
[360195230,1746614931664,-151.0,0.00019516,2]
[360195231,1746614931693,-450.0,0.00019516,2]
[360195232,1746614931723,-151.0,0.00019516,2]
[360195233,1746614931755,-450.0,0.00019516,2]
[360195234,1746614931786,-151.0,0.00019516,2]
[360195235,1746614931816,-450.0,0.00019516,2]
[360195236,1746614931848,-151.0,0.00019516,2]
[360195237,1746614931878,-279.781226,0.00019516,2]
[360195238,1746614931909,-502.26992778,0.00019516,2]
[360195239,1746614931941,-450.0,0.00019516,2]
[360195240,1746614931974,-450.0,0.00019516,2]
[360195241,1746614932003,-2745.63,0.00019516,2]
[360195242,1746614932033,-550.0,0.00019516,2]
[360195243,1746614932063,-769.2,0.00019516,2]
[360195244,1746614932092,-450.0,0.00019516,2]
[360195245,1746614932122,-211.41,0.00019516,2]
[360195246,1746614932152,-450.0,0.00019516,2]
[360195247,1746614932182,-450.0,0.00019516,2]
[360195248,1746614932212,-450.0,0.00019516,2]
[360195249,1746614932242,-718.28,0.00019516,2]
[360195250,1746614932272,-450.0,0.00019516,2]
[360195251,1746614932302,-450.0,0.00019516,2]
[360195252,1746614932331,-450.0,0.00019516,2]
[360195253,1746614932362,-450.0,0.00019516,2]
[360195254,1746614932391,-450.0,0.00019516,2]
[360195255,1746614932421,-151.0,0.00019516,2]
[360195256,1746614932451,-151.0,0.00019516,2]
[360195257,1746614932480,-151.0,0.00019516,2]
[360195258,1746614932509,-151.0,0.00019516,2]
[360195259,1746614932537,-151.0,0.00019516,2]
[360195260,1746614932564,-450.0,0.00019516,2]
[360195261,1746614932592,-450.0,0.00019516,2]
[360195262,1746614932620,-450.0,0.00019516,2]
[360195263,1746614932648,-880.0,0.00019516,2]
[360195264,1746614932676,-185.0496504,0.00019516,2]
[360195265,1746614932705,-191.04907912,0.00019516,2]
[360195266,1746614932735,-163.70441207,0.00019516,2]
[360195267,1746614932764,-500.0,0.00019516,2]
[360195268,1746614932793,-251.60560128,0.00019516,2]
[360195269,1746614932820,-236.46862239,0.00019516,2]
[360195270,1746614932850,-159.50084399,0.00019516,2]
[360195271,1746614932880,-500.0,0.00019516,2]
[360195272,1746614932908,-500.0,0.00019516,2]
[360195273,1746614932940,-500.0,0.00019516,2]
[360195274,1746614932967,-500.0,0.00019516,2]
[360195275,1746614932995,-500.0,0.00019516,2]
[360195276,1746614933024,-500.0,0.00019516,2]
[360195277,1746614933051,-500.0,0.00019516,2]
[360195278,1746614933079,-500.0,0.00019516,2]
[360195279,1746614933106,-543.37600028,0.00019516,2]
[360195280,1746614933134,-500.0,0.00019516,2]
[360195281,1746614933162,-450.0,0.00019516,2]
[360195282,1746614933191,-592.2,0.00019516,2]
[360195283,1746614933220,-450.0,0.00019516,2]
[360195284,1746614933250,-151.0,0.00019516,2]
[360195285,1746614933280,-151.0,0.00019516,2]
[360195286,1746614933308,-151.0,0.00019516,2]
[360195287,1746614933337,-589.24,0.00019516,2]
[360195288,1746614933365,-450.0,0.00019516,2]
[360195289,1746614933393,-450.0,0.00019516,2]
[360195290,1746614933421,-450.0,0.00019516,2]
[360195291,1746614933448,-450.0,0.00019516,2]
[360195292,1746614933476,-219.91942205,0.00019516,2]
[360195293,1746614933505,-171.52,0.00019517,2]
[360195294,1746614933534,-450.0,0.00019517,2]
[360195295,1746614933563,-599.52,0.00019517,2]
[360195296,1746614933592,-450.0,0.00019517,2]
[360195297,1746614933624,-450.0,0.00019517,2]
[360195298,1746614933656,-450.0,0.00019517,2]
[360195299,1746614933687,-450.0,0.00019517,2]
[360195300,1746614933718,-450.0,0.00019517,2]
[360195301,1746614933748,-450.0,0.00019517,2]
[360195302,1746614933778,-450.0,0.00019517,2]
[360195303,1746614933810,-2862.7,0.00019517,2]
[360195304,1746614933840,-450.0,0.00019517,2]
[360195305,1746614933870,-450.0,0.00019517,2]
[360195306,1746614934063,-450.0,0.00019517,2]
[360195307,1746614934092,-151.0,0.00019517,2]
[360195308,1746614934121,-151.0,0.00019517,2]
[360195309,1746614934150,-151.0,0.00019517,2]
[360195310,1746614934178,-450.0,0.00019517,2]
[360195311,1746614934208,-2745.63,0.00019517,2]
[360195312,1746614934238,-769.2,0.00019517,2]
[360195313,1746614934268,-450.0,0.00019517,2]
[360195314,1746614934297,-718.28,0.00019517,2]
[360195315,1746614934329,-450.0,0.00019517,2]
[360195316,1746614934357,-334.63585014,0.00019517,2]
[360195317,1746614934386,-450.0,0.00019517,2]
[360195318,1746614934414,-151.0,0.00019517,2]
[360195319,1746614934442,-151.0,0.00019517,2]
[360195320,1746614934470,-151.0,0.00019517,2]
[360195321,1746614934499,-450.0,0.00019517,2]
[360195322,1746614934528,-504.558914,0.00019517,2]
[360195323,1746614934557,-226.5,0.00019519,2]
[360195324,1746614934588,-450.0,0.00019526,2]
[360195325,1746614934618,-450.0,0.00019526,2]
[360195326,1746614934649,-450.0,0.00019526,2]
[360195327,1746614934679,-592.2,0.00019526,2]
[360195328,1746614934708,-424.24519152,0.00019526,2]
[360195329,1746614934738,-708.97,0.00019527,2]
[360195330,1746614934770,-450.0,0.00019527,2]
[360195331,1746614934800,-708.97,0.00019527,2]
[360195332,1746614934828,-450.0,0.00019527,2]
[360195333,1746614934857,-450.0,0.00019527,2]
[360195334,1746614934887,-450.0,0.00019527,2]
[360195335,1746614934919,-450.0,0.00019527,2]
[360195336,1746614934951,-450.0,0.00019527,2]
[360195337,1746614934983,-162.95,0.00019527,2]
[360195338,1746614935018,-450.0,0.00019527,2]
[360195339,1746614935048,-450.0,0.00019527,2]
[360195340,1746614935076,-450.0,0.00019527,2]
[360195341,1746614935105,-450.0,0.00019527,2]
[360195342,1746614935133,-281.46,0.00019527,2]
[360195343,1746614935163,-2862.7,0.00019527,2]
[360195344,1746614935191,-450.0,0.00019527,2]
[360195345,1746614935219,-450.0,0.00019527,2]
[360195346,1746614935248,-450.0,0.00019527,2]
[360195347,1746614935275,-450.0,0.00019527,2]
[360195348,1746614935303,-450.0,0.00019527,2]
[360195349,1746614935331,-2745.63,0.00019527,2]
[360195350,1746614935360,-769.2,0.00019527,2]
[360195351,1746614935388,-285.54,0.00019527,2]
[360195352,1746614935416,-718.28,0.00019527,2]
[360195353,1746614935445,-450.0,0.00019527,2]
[360195354,1746614935474,-880.0,0.00019527,2]
[360195355,1746614935502,-880.0,0.00019527,2]
[360195356,1746614935530,-450.0,0.00019527,2]
[360195357,1746614935558,-450.0,0.00019527,2]
[360195358,1746614935586,-592.2,0.00019527,2]
[360195359,1746614935614,-589.24,0.00019527,2]
[360195360,1746614935642,-589.24,0.00019527,2]
[360195361,1746614935672,-450.0,0.00019527,2]
[360195362,1746614935701,-450.0,0.00019527,2]
[360195363,1746614935731,-450.0,0.00019528,2]
[360195364,1746614935761,-708.97,0.00019528,2]
[360195365,1746614935790,-450.0,0.00019528,2]
[360195366,1746614935819,-708.97,0.00019528,2]
[360195367,1746614935850,-450.0,0.00019528,2]
[360195368,1746614935878,-450.0,0.00019528,2]
[360195369,1746614935908,-450.0,0.00019528,2]
[360195370,1746614935938,-450.0,0.00019528,2]
[360195371,1746614935967,-330.2,0.00019528,2]
[360195372,1746614935995,-510.17,0.00019528,2]
[360195373,1746614936025,-367.82,0.00019528,2]
[360195374,1746614936053,-450.0,0.00019528,2]
[360195375,1746614936082,-2862.7,0.00019528,2]
[360195376,1746614936111,-534.19285142,0.00019528,2]
[360195377,1746614936140,-450.0,0.00019528,2]
[360195378,1746614936168,-450.0,0.00019528,2]
[360195379,1746614936203,-450.0,0.00019528,2]
[360195380,1746614936234,-335.13,0.00019528,2]
[360195381,1746614936266,-2745.63,0.00019528,2]
[360195382,1746614936295,-769.2,0.00019528,2]
[360195383,1746614936324,-718.28,0.00019528,2]
[360195384,1746614936354,-450.0,0.00019528,2]
[360195385,1746614936383,-880.0,0.00019528,2]
[360195386,1746614936412,-450.0,0.00019528,2]
[360195387,1746614936442,-592.2,0.00019528,2]
[360195388,1746614936471,-161.92314,0.00019528,2]
[360195389,1746614936499,-589.24,0.00019528,2]
[360195390,1746614936527,-12471.2970313,0.00019562,2]
[360195391,1746614936556,-450.0,0.00019565,2]
[360195392,1746614936591,-450.0,0.00019566,2]
[360195393,1746614936621,-450.0,0.00019566,2]
[360195394,1746614936650,-450.0,0.00019566,2]
[360195395,1746614936678,-450.0,0.00019566,2]
[360195396,1746614936707,-450.0,0.00019566,2]
[360195397,1746614936736,-2862.7,0.00019566,2]
[360195398,1746614936766,-450.0,0.00019566,2]
[360195399,1746614936795,-2745.63,0.00019566,2]
[360195400,1746614936822,-769.2,0.00019566,2]
[360195401,1746614936851,-718.28,0.00019566,2]
[360195402,1746614936880,-450.0,0.00019566,2]
[360195403,1746614936910,-592.2,0.00019566,2]
[360195404,1746614936938,-260.5151734,0.00019567,2]
[360195405,1746614936967,-12152.8014472,0.00019572,2]
[360195406,1746614936998,-500.0,0.00019573,2]
[360195407,1746614937027,-500.0,0.00019573,2]
[360195408,1746614937056,-253.8620617,0.00019573,2]
[360195409,1746614937083,-559.2888059,0.00019573,2]
[360195410,1746614937111,-450.0,0.00019573,2]
[360195411,1746614937139,-772.0,0.00019574,2]
[360195412,1746614937168,-450.0,0.00019574,2]
[360195413,1746614937198,-708.97,0.00019574,2]
[360195414,1746614937227,-490.5,0.00019574,2]
[360195415,1746614937256,-450.0,0.00019574,2]
[360195416,1746614937285,-450.0,0.00019574,2]
[360195417,1746614937313,-880.0,0.00019574,2]
[360195418,1746614937342,-450.0,0.00019574,2]
[360195419,1746614937372,-592.2,0.00019574,2]
[360195420,1746614937401,-589.24,0.00019574,2]
[360195421,1746614937430,-450.0,0.00019575,2]
[360195422,1746614937459,-450.0,0.00019575,2]
[360195423,1746614937489,-450.0,0.00019575,2]
[360195424,1746614937519,-450.0,0.00019575,2]
[360195425,1746614937553,-2862.7,0.00019575,2]
[360195426,1746614937585,-2745.63,0.00019575,2]
[360195427,1746614937615,-769.2,0.00019575,2]
[360195428,1746614937646,-151.0,0.00019575,2]
[360195429,1746614937675,-718.28,0.00019575,2]
[360195430,1746614937703,-151.0,0.00019575,2]
[360195431,1746614937733,-450.0,0.00019575,2]
[360195432,1746614937763,-450.0,0.00019575,2]
[360195433,1746614937794,-708.97,0.00019578,2]
[360195434,1746614937834,-450.0,0.00019579,2]
[360195435,1746614937869,-450.0,0.00019579,2]
[360195436,1746614937899,-590.83,0.00019579,2]
[360195437,1746614937929,-880.0,0.00019579,2]
[360195438,1746614937959,-450.0,0.00019579,2]
[360195439,1746614937991,-592.2,0.00019579,2]
[360195440,1746614938022,-589.24,0.00019579,2]
[360195441,1746614938053,-297.61326392,0.00019579,2]
[360195442,1746614938083,-450.0,0.0001958,2]
[360195443,1746614938115,-450.0,0.0001958,2]
[360195444,1746614938145,-450.0,0.0001958,2]
[360195445,1746614938175,-450.0,0.0001958,2]
[360195446,1746614938207,-2862.7,0.0001958,2]
[360195447,1746614938240,-2745.63,0.0001958,2]
[360195448,1746614938272,-769.2,0.0001958,2]
[360195449,1746614938302,-718.28,0.0001958,2]
[360195450,1746614938333,-450.0,0.0001958,2]
[360195451,1746614938365,-165.4,0.00019581,2]
[360195452,1746614938395,-708.97,0.00019581,2]
[360195453,1746614938426,-450.0,0.00019581,2]
[360195454,1746614938458,-880.0,0.00019581,2]
[360195455,1746614938706,-450.0,0.00019581,2]
[360195456,1746614938738,-592.2,0.00019581,2]
[360195457,1746614938769,-589.24,0.00019581,2]
[360195458,1746614938799,-708.97,0.00019582,2]
[360195459,1746614938827,-450.0,0.00019582,2]
[360195460,1746614938860,-450.0,0.00019582,2]
[360195461,1746614938893,-450.0,0.00019582,2]
[360195462,1746614938924,-450.0,0.00019582,2]
[360195463,1746614938954,-2862.7,0.00019582,2]
[360195464,1746614938983,-450.0,0.00019582,2]
[360195465,1746614939010,-450.0,0.00019582,2]
[360195466,1746614939038,-2745.63,0.00019582,2]
[360195467,1746614939066,-769.2,0.00019582,2]
[360195468,1746614939094,-718.28,0.00019582,2]
[360195469,1746614939123,-450.0,0.00019582,2]
[360195470,1746614939151,-880.0,0.00019582,2]
[360195471,1746614939180,-450.0,0.00019582,2]
[360195472,1746614939210,-592.2,0.00019582,2]
[360195473,1746614939239,-592.2,0.00019582,2]
[360195474,1746614939269,-589.24,0.00019582,2]
[360195475,1746614939298,-708.97,0.00019583,2]
[360195476,1746614939327,-708.97,0.00019583,2]
[360195477,1746614939357,-219.6,0.00019583,2]
[360195478,1746614939389,-450.0,0.00019583,2]
[360195479,1746614939418,-450.0,0.00019583,2]
[360195480,1746614939446,-450.0,0.00019583,2]
[360195481,1746614939475,-450.0,0.00019583,2]
[360195482,1746614939504,-450.0,0.00019583,2]
[360195483,1746614939533,-450.0,0.00019583,2]
[360195484,1746614939563,-2862.7,0.00019583,2]
[360195485,1746614939594,-2862.7,0.00019583,2]
[360195486,1746614939622,-450.0,0.00019583,2]
[360195487,1746614939650,-2745.63,0.00019583,2]
[360195488,1746614939679,-2745.63,0.00019583,2]
[360195489,1746614939708,-769.2,0.00019583,2]
[360195490,1746614939736,-769.2,0.00019583,2]
[360195491,1746614939765,-718.28,0.00019583,2]
[360195492,1746614939795,-718.28,0.00019583,2]
[360195493,1746614939825,-450.0,0.00019583,2]
[360195494,1746614939854,-450.0,0.00019583,2]
[360195495,1746614939881,-880.0,0.00019583,2]
[360195496,1746614939909,-450.0,0.00019583,2]
[360195497,1746614939939,-592.2,0.00019583,2]
[360195498,1746614939969,-589.24,0.00019583,2]
[360195499,1746614939998,-708.97,0.00019584,2]
[360195500,1746614940026,-708.97,0.00019584,2]
[360195501,1746614940057,-450.0,0.00019584,2]
[360195502,1746614940087,-405.28,0.00019584,2]
[360195503,1746614940116,-450.0,0.00019584,2]
[360195504,1746614940147,-2862.7,0.00019584,2]
[360195505,1746614940176,-450.0,0.00019584,2]
[360195506,1746614940206,-2745.63,0.00019584,2]
[360195507,1746614940237,-769.2,0.00019584,2]
[360195508,1746614940270,-718.28,0.00019584,2]
[360195509,1746614940301,-450.0,0.00019584,2]
[360195510,1746614940331,-880.0,0.00019584,2]
[360195511,1746614940360,-880.0,0.00019584,2]
[360195512,1746614940388,-406.98443447,0.00019584,2]
[360195513,1746614940417,-592.2,0.00019584,2]
[360195514,1746614940447,-589.24,0.00019584,2]
[360195515,1746614940476,-589.24,0.00019584,2]
[360195516,1746614940505,-397.46,0.00019585,2]
[360195517,1746614940535,-450.0,0.00019585,2]
[360195518,1746614940565,-2862.7,0.00019585,2]
[360195519,1746614940594,-450.0,0.00019585,2]
[360195520,1746614940622,-2745.63,0.00019585,2]
[360195521,1746614940652,-769.2,0.00019585,2]
[360195522,1746614940680,-11834.305863,0.00019585,2]
[360195523,1746614940708,-718.28,0.00019585,2]
[360195524,1746614940738,-450.0,0.00019585,2]
[360195525,1746614940769,-592.2,0.00019585,2]
[360195526,1746614940800,-708.97,0.00019586,2]
[360195527,1746614940830,-450.0,0.00019586,2]
[360195528,1746614940861,-2862.7,0.00019586,2]
[360195529,1746614940890,-450.0,0.00019586,2]
[360195530,1746614940920,-2745.63,0.00019586,2]
[360195531,1746614940950,-769.2,0.00019586,2]
[360195532,1746614940978,-718.28,0.00019586,2]
[360195533,1746614941007,-462.81,0.00019586,2]
[360195534,1746614941036,-880.0,0.00019586,2]
[360195535,1746614941068,-592.2,0.00019586,2]
[360195536,1746614941097,-589.24,0.00019586,2]
[360195537,1746614941126,-203.10216101,0.00019587,2]
[360195538,1746614941155,-450.0,0.00019587,2]
[360195539,1746614941183,-450.0,0.00019587,2]
[360195540,1746614941211,-575.04,0.00019587,2]
[360195541,1746614941241,-804.49,0.00019587,2]
[360195542,1746614941270,-2185.6252213,0.00019587,2]
[360195543,1746614941299,-825.77,0.00019587,2]
[360195544,1746614941328,-616.27,0.00019587,2]
[360195545,1746614941358,-41986.2249333,0.00019587,2]
[360195546,1746614941387,-1093.57,0.00019587,2]
[360195547,1746614941418,-814.49,0.00019587,2]
[360195548,1746614941447,-706.91,0.00019587,2]
[360195549,1746614941478,-450.0,0.00019587,2]
[360195550,1746614941507,-7303.91,0.00019587,2]
[360195551,1746614941539,-653.21,0.00019587,2]
[360195552,1746614941570,-2795.86,0.00019587,2]
[360195553,1746614941599,-450.0,0.00019587,2]
[360195554,1746614941629,-1214.17,0.00019587,2]
[360195555,1746614941659,-862.74,0.00019587,2]
[360195556,1746614941688,-890.92,0.00019587,2]
[360195557,1746614941718,-587.19,0.00019587,2]
[360195558,1746614941746,-1264.98,0.00019587,2]
[360195559,1746614941776,-209.64846838,0.00019587,2]
[360195560,1746614941805,-450.0,0.00019587,2]
[360195561,1746614941836,-1695.43,0.00019587,2]
[360195562,1746614941871,-450.0,0.00019587,2]
[360195563,1746614941899,-518.51,0.00019587,2]
[360195564,1746614941929,-706.13,0.00019587,2]
[360195565,1746614941959,-450.0,0.00019587,2]
[360195566,1746614941988,-552.32,0.00019587,2]
[360195567,1746614942017,-769.64,0.00019587,2]
[360195568,1746614942047,-1374.23,0.00019587,2]
[360195569,1746614942076,-526.61,0.00019587,2]
[360195570,1746614942105,-708.97,0.00019587,2]
[360195571,1746614942135,-450.0,0.00019587,2]
[360195572,1746614942165,-2862.7,0.00019587,2]
[360195573,1746614942194,-450.0,0.00019587,2]
[360195574,1746614942222,-247.20895,0.00019587,2]
[360195575,1746614942252,-2745.63,0.00019587,2]
[360195576,1746614942282,-769.2,0.00019587,2]
[360195577,1746614942310,-718.28,0.00019587,2]
[360195578,1746614942341,-592.2,0.00019587,2]
[360195579,1746614942372,-500.0,0.00019588,2]
[360195580,1746614942402,-500.0,0.00019588,2]
[360195581,1746614942434,-500.0,0.00019588,2]
[360195582,1746614942466,-500.0,0.00019588,2]
[360195583,1746614942495,-450.0,0.00019588,2]
[360195584,1746614942525,-507.91,0.00019588,2]
[360195585,1746614942554,-450.0,0.00019588,2]
[360195586,1746614942585,-378.70870773,0.00019588,2]
[360195587,1746614942618,-590.12,0.00019588,2]
[360195588,1746614942649,-616.27,0.00019588,2]
[360195589,1746614942678,-545.29,0.00019588,2]
[360195590,1746614942708,-520.25,0.00019588,2]
[360195591,1746614942739,-995.8,0.00019588,2]
[360195592,1746614942768,-706.91,0.00019588,2]
[360195593,1746614942801,-450.0,0.00019588,2]
[360195594,1746614942833,-450.0,0.00019588,2]
[360195595,1746614942863,-2795.86,0.00019588,2]
[360195596,1746614942894,-522.38,0.00019588,2]